{"text_format":"1","workbook":"xlsx","n_sheets":1,"sheets":["Soins aux jeunes forêts"],"not_rendered":{"charts":0,"images":0,"macros":1,"external_links":0,"defined_names":0,"comments":0,"pivot_tables":0},"unopened":[],"bounds":{"document_bytes":16777216,"sheet_cells":100000,"rows_first":2000,"rows_last":500,"rows_between":2000,"halvings":0,"cell_chars":16384,"cell_head_chars":4096},"cells_cut":0,"cells_raw":0,"read":"whole","date_system":"1900"}

{"sheet":"Soins aux jeunes forêts","index":0,"n_rows":134,"n_cols":43,"rows_kept":134,"cut":false,"hidden":false,"merged":[[48,38,49,45],[59,38,60,41],[50,34,52,37],[50,38,52,41],[67,42,68,45],[53,42,54,45],[57,42,58,45],[59,42,60,45],[55,14,56,22],[53,34,54,37],[57,34,58,37],[57,38,58,41],[53,30,54,33],[57,30,58,33],[61,30,62,33],[55,26,56,29],[59,26,60,29],[65,30,66,33],[65,34,66,37],[65,38,66,41],[65,42,66,45],[55,11,56,11],[63,23,64,25],[63,26,64,29],[48,30,49,37],[55,9,56,10],[55,12,56,13],[67,30,68,33],[98,34,99,42],[0,17,3,27],[0,28,1,45],[2,28,3,45],[5,26,7,34],[5,35,7,45],[8,26,9,45],[22,42,23,45],[61,42,62,45],[18,41,19,41],[20,41,21,41],[22,26,25,38],[22,7,25,20],[26,7,29,20],[32,1,33,10],[4,0,4,45],[0,0,3,16],[53,5,54,5],[55,6,56,7],[11,2,13,6],[59,30,60,33],[67,38,68,41],[53,38,54,41],[37,13,38,13],[22,22,25,25],[28,22,29,39],[59,34,60,37],[55,34,56,37],[61,34,62,37],[61,38,62,41],[67,34,68,37],[32,37,34,37],[32,38,34,44],[32,29,34,29],[34,13,35,13],[34,1,35,11],[32,30,34,36],[32,21,34,28],[18,42,19,45],[20,42,21,45],[18,26,21,38],[124,1,125,5],[124,11,125,15],[121,1,123,11],[124,21,125,27],[92,1,97,32],[92,34,93,45],[94,34,96,44],[101,39,102,39],[69,42,71,45],[69,38,71,41],[69,1,71,22],[69,34,71,37],[69,30,71,33],[69,26,71,29],[98,1,99,5],[98,11,99,15],[69,23,71,25],[98,21,99,27],[107,1,108,29],[109,34,110,39],[109,1,110,5],[109,11,110,15],[109,21,110,27],[101,34,102,38],[131,1,132,7],[112,39,113,39],[123,31,125,35],[126,36,128,40],[121,36,122,40],[116,32,117,42],[112,34,113,38],[123,41,125,44],[119,1,120,15],[119,16,120,28],[126,31,128,35],[123,36,125,40],[118,31,119,44],[131,8,134,24],[133,1,134,7],[131,35,134,44],[121,41,122,44],[131,30,132,34],[121,12,123,15],[121,16,123,24],[121,25,123,28],[126,1,128,10],[126,11,128,20],[126,21,128,29],[116,0,117,0],[116,1,117,28],[90,0,91,0],[90,1,91,32],[73,0,74,0],[73,1,74,45],[76,1,77,29],[76,34,77,38],[76,40,77,44],[78,34,80,39],[78,40,80,44],[82,34,83,44],[79,1,87,32],[84,34,87,44],[90,34,91,44],[116,31,117,31],[111,1,113,10],[111,11,113,20],[111,21,113,32],[105,0,106,0],[105,1,106,45],[100,1,102,10],[100,11,102,20],[100,21,102,32],[32,0,33,0],[50,42,52,45],[43,1,47,22],[48,23,52,25],[48,26,52,29],[43,24,47,45],[63,30,64,33],[63,34,64,37],[63,38,64,41],[63,42,64,45],[53,23,54,25],[57,23,58,25],[59,23,60,25],[61,23,62,25],[53,1,54,4],[41,24,42,31],[55,38,56,41],[55,42,56,45],[53,6,54,22],[55,1,56,4],[55,5,56,5],[55,8,56,8],[36,31,38,36],[36,37,38,44],[41,0,42,0],[41,1,42,19],[50,30,52,33],[37,1,38,11],[51,1,52,22],[49,0,50,0],[67,1,68,22],[63,1,64,22],[49,1,50,19],[67,23,68,25],[67,26,68,29],[53,26,54,29],[57,26,58,29],[57,1,58,22],[59,1,60,22],[61,26,62,29],[61,1,62,22],[55,30,56,33],[55,23,56,25],[36,27,38,30],[36,21,38,26],[65,1,66,22],[65,23,66,25],[65,26,66,29],[5,0,7,25],[8,0,9,25],[11,18,13,28],[11,29,13,33],[18,7,21,20],[18,22,21,25],[28,41,29,41],[22,41,23,41],[24,41,25,41],[18,1,21,6],[22,1,25,6],[26,1,29,6],[11,7,13,9],[10,0,10,45],[14,0,14,45],[16,0,17,0],[16,1,17,45],[11,34,13,45],[11,14,13,17],[11,10,13,13],[11,0,13,1],[24,42,25,45]]}
["Office des forêts\net des dangers naturels",null,null,null,null,null,null,null,null,null,null,null,null,null,null,null,null,"Annexe 1",null,null,null,null,null,null,null,null,null,null,"Soins aux jeunes forêts hors forêt protectrice, Circ. 6.1/6"]
[]
[null,null,null,null,null,null,null,null,null,null,null,null,null,null,null,null,null,null,null,null,null,null,null,null,null,null,null,null,"Version 25/7"]
[]
[]
["Projet simplifié: Soins aux jeunes forêts",null,null,null,null,null,null,null,null,null,null,null,null,null,null,null,null,null,null,null,null,null,null,null,null,null,null,null,null,null,null,null,null,null,null,"ID-SIG:"]
[]
[]
["Demande / décompte de contributions"]
[]
[]
["DF",null,null,null,null,null,null,"Triage ",null,null,null,null,null,null,"Commune ",null,null,null,null,null,null,null,null,null,null,null,null,null,null,"Lieu-dit "]
[]
[]
[]
[]
[1,"Indications au sujet de l'organisme responsable"]
[]
[null,"Nom / Prénom",null,null,null,null,null,null,null,null,null,null,null,null,null,null,null,null,null,null,null,null,"à l'att. de",null,null,null,null,null,null,null,null,null,null,null,null,null,null,null,null,null,null,null,"  public"]
[]
[null,null,null,null,null,null,null,null,null,null,null,null,null,null,null,null,null,null,null,null,null,null,null,null,null,null,null,null,null,null,null,null,null,null,null,null,null,null,null,null,null,null,"  privé"]
[]
[null,"Rue",null,null,null,null,null,null,null,null,null,null,null,null,null,null,null,null,null,null,null,null,"NPA / Lieu",null,null,null,null,null,null,null,null,null,null,null,null,null,null,null,null,null,null,null,"  EFD / OPC"]
[]
[null,null,null,null,null,null,null,null,null,null,null,null,null,null,null,null,null,null,null,null,null,null,null,null,null,null,null,null,null,null,null,null,null,null,null,null,null,null,null,null,null,null,"  Confédér."]
[]
[null,"Case postale"]
[]
[null,null,null,null,null,null,null,null,null,null,null,null,null,null,null,null,null,null,null,null,null,null,"Un bulletin de versement est annexé"]
[]
[]
[]
[2,"Localisation des surfaces",null,null,null,null,null,null,null,null,null,null,null,null,null,null,null,null,null,null,null,"Coordonnées du centre   ",null,null,null,null,null,null,null,"x",null,null,null,null,null,null,null,"y"]
[]
[null," Autres forêts"]
[]
[null,null,null,null,null,null,null,null,null,null,null,null,null,null,null,null,null,null,null,null,null,"Nombre de surfaces",null,null,null,null,null,null,null,null,null,"Altitude   "]
[null,null,null,null,null,null,null,null,null,null,null,null,null,null,null,null,null,null,null,null,"  "]
[]
[]
[]
[3,"Objectifs (sur la base de la clé simplifiée des stations)",null,null,null,null,null,null,null,null,null,null,null,null,null,null,null,null,null,null,null,null,null,null,"Mesures"]
[]
[]
[]
[]
[]
[]
[null,null,null,null,null,null,null,null,null,null,null,null,null,null,null,null,null,null,null,null,null,null,null,"Unité",null,null,"Montant forfaitaire\nCHF",null,null,null,"Devis",null,null,null,null,null,null,null,"Décompte"]
[4,"Devis / Décompte"]
[null,null,null,null,null,null,null,null,null,null,null,null,null,null,null,null,null,null,null,null,null,null,null,null,null,null,null,null,null,null,"Nombre",null,null,null,"Contribution",null,null,null,"Nombre",null,null,null,"Contribution"]
[null,"autres forêts"]
[]
[null,"Dégag.plants",null,null,null,"o","1ère intervention",null,null,null,null,null,null,null,null,null,null,null,null,null,null,null,null,"ha",null,null,720,null,null,null,null,null,null,null,{"$f":"ROUND(AA54*AE54*2,1)/2","v":0},null,null,null,null,null,null,null,{"$f":"ROUND(AA54*AM54*2,1)/2","v":0}]
[]
[null,"Dégag.plants",null,null,null,"o","1ère",null,"o","2e",null,"o","3e",null,"intervention consécutive",null,null,null,null,null,null,null,null,"ha",null,null,720,null,null,null,null,null,null,null,{"$f":"ROUND(AA56*AE56*2,1)/2","v":0},null,null,null,null,null,null,null,{"$f":"ROUND(AA56*AM56*2,1)/2","v":0}]
[]
[null,"Rajeunissement",null,null,null,null,null,null,null,null,null,null,null,null,null,null,null,null,null,null,null,null,null,"ha",null,null,1450,null,null,null,null,null,null,null,{"$f":"ROUND(AA58*AE58*2,1)/2","v":0},null,null,null,null,null,null,null,{"$f":"ROUND(AA58*AM58*2,1)/2","v":0}]
[]
[null,"Fourré",null,null,null,null,null,null,null,null,null,null,null,null,null,null,null,null,null,null,null,null,null,"ha",null,null,1450,null,null,null,null,null,null,null,{"$f":"ROUND(AA60*AE60*2,1)/2","v":0},null,null,null,null,null,null,null,{"$f":"ROUND(AA60*AM60*2,1)/2","v":0}]
[]
[null,"Peuplement étagé",null,null,null,null,null,null,null,null,null,null,null,null,null,null,null,null,null,null,null,null,null,"ha",null,null,1450,null,null,null,null,null,null,null,{"$f":"ROUND(AA62*AE62*2,1)/2","v":0},null,null,null,null,null,null,null,{"$f":"ROUND(AA62*AM62*2,1)/2","v":0}]
[]
[null,"Soins après une coupe (max. 50 % de la surface de la coupe)",null,null,null,null,null,null,null,null,null,null,null,null,null,null,null,null,null,null,null,null,null,"ha",null,null,1450,null,null,null,null,null,null,null,{"$f":"ROUND(AA64*AE64*2,1)/2","v":0},null,null,null,null,null,null,null,{"$f":"ROUND(AA64*AM64*2,1)/2","v":0}]
[]
[null,"Elagage (1.5 a par arbre)",null,null,null,null,null,null,null,null,null,null,null,null,null,null,null,null,null,null,null,null,null,"ha",null,null,1600,null,null,null,null,null,null,null,{"$f":"ROUND(AA66*AE66*2,1)/2","v":0},null,null,null,null,null,null,null,{"$f":"ROUND(AA66*AM66*2,1)/2","v":0}]
[]
[null,"Soins des chênes et des essences rares",null,null,null,null,null,null,null,null,null,null,null,null,null,null,null,null,null,null,null,null,null,"ha",null,null,2000,null,null,null,null,null,null,null,{"$f":"ROUND(AA68*AE68*2,1)/2","v":0},null,null,null,null,null,null,null,{"$f":"ROUND(AA68*AM68*2,1)/2","v":0}]
[]
[null,"Total",null,null,null,null,null,null,null,null,null,null,null,null,null,null,null,null,null,null,null,null,null,"ha",null,null,null,null,null,null,{"$f":"SUM(AE54:AH69)","v":0},null,null,null,{"$f":"SUM(AI54:AL69)","v":0},null,null,null,{"$f":"SUM(AM54:AP69)","v":0},null,null,null,{"$f":"SUM(AQ54:AT69)","v":0}]
[]
[]
[]
[5,"Organisme responsable: Dépôt de la demande et conditions générales pour l'octroi des contributions"]
[]
[]
[null,"L'organisme responsable propose le subventionnement des travaux prévus aux chiffres 3 et 4",null,null,null,null,null,null,null,null,null,null,null,null,null,null,null,null,null,null,null,null,null,null,null,null,null,null,null,null,null,null,null,null,"Lieu",null,null,null,null,null,"Date"]
[]
[]
[null,"1. Les directives de l'OFDN doivent être respectées.\n2. Les mesures doivent être exécutées dans les règles de l'art; le personnel engagé doit être compétent.\n3. Les buts ne doivent pas être compromis par des exploitations préjudiciables (pâture, etc) ou un cheptel excessif de gibier.\n4.  Les directives et prescriptions de sécurité de la  SUVA, de la CFST et de l'OFAC doivent être respectées.\n5. Les contributions ne seront versées que si le bénéficiaire cotise au FdBB pour toutes ses exploitations soumises. (cf. Circ. 1.4/7)"]
[]
[]
[null,null,null,null,null,null,null,null,null,null,null,null,null,null,null,null,null,null,null,null,null,null,null,null,null,null,null,null,null,null,null,null,null,null,"L'organisme responsable"]
[]
[]
[]
[]
[]
[]
[]
[6,"Le forestier de triage",null,null,null,null,null,null,null,null,null,null,null,null,null,null,null,null,null,null,null,null,null,null,null,null,null,null,null,null,null,null,null,null,"Date"]
[]
[null,"L'approbation de la demande ne garantit pas le subventionnement.\nIl n'est assuré que par l'approbation du décompte et l'autorisation de versement.\nLe versement de la contribution s'effectue en fonction des crédits disponibles.",null,null,null,null,null,null,null,null,null,null,null,null,null,null,null,null,null,null,null,null,null,null,null,null,null,null,null,null,null,null,null,null,"Demande valable jusqu'au: (max. fin 2025)"]
[]
[]
[]
[]
[]
[null,"Lieu",null,null,null,null,null,null,null,null,null,"Date",null,null,null,null,null,null,null,null,null,"Le forestier de triage",null,null,null,null,null,null,null,null,null,null,null,null,"Remarque "]
[]
[]
[null,null,null,null,null,null,null,null,null,null,null,null,null,null,null,null,null,null,null,null,null,null,null,null,null,null,null,null,null,null,null,null,null,null,"voir annexe"]
[]
[]
[]
[7,"Confirmation d'exécution par le forestier de triage"]
[]
[null,"Les travaux ont été effectués dans les règles de l'art et peuvent être subventionnés."]
[]
[null,"Lieu",null,null,null,null,null,null,null,null,null,"Date",null,null,null,null,null,null,null,null,null,"Le forestier de triage",null,null,null,null,null,null,null,null,null,null,null,null,"Remarque"]
[]
[]
[null,null,null,null,null,null,null,null,null,null,null,null,null,null,null,null,null,null,null,null,null,null,null,null,null,null,null,null,null,null,null,null,null,null,"voir annexe"]
[]
[]
[]
[8,"Approbation du décompte et autorisation de versement",null,null,null,null,null,null,null,null,null,null,null,null,null,null,null,null,null,null,null,null,null,null,null,null,null,null,null,null,null,9,"Contrôle DF"]
[]
[null,null,null,null,null,null,null,null,null,null,null,null,null,null,null,null,null,null,null,null,null,null,null,null,null,null,null,null,null,null,null,"Visa du spécialiste"]
[null,"Surfaces traitées en ha",null,null,null,null,null,null,null,null,null,null,null,null,null,null,"Total CHF"]
[]
[null,{"$f":"AM70","v":0},null,null,null,null,null,null,null,null,null,null,"ha",null,null,null,{"$f":"AQ70","v":0},null,null,null,null,null,null,null,null,"CHF",null,null,null,null,null,null,null,null,null,null,"Date",null,null,null,null,"Visa"]
[]
[null,null,null,null,null,null,null,null,null,null,null,null,null,null,null,null,null,null,null,null,null,null,null,null,null,null,null,null,null,null,null,"Responsable  "]
[null,"Lieu",null,null,null,null,null,null,null,null,null,"Date",null,null,null,null,null,null,null,null,null,"La Division forestière"]
[]
[null,null,null,null,null,null,null,null,null,null,null,null,null,null,null,null,null,null,null,null,null,null,null,null,null,null,null,null,null,null,null,"Pièce justif. N° "]
[]
[]
[]
[]
[null,"Annexes pour DF:",null,null,null,null,null,null,"- Plan d'exécution 1:5'000",null,null,null,null,null,null,null,null,null,null,null,null,null,null,null,null,null,null,null,null,null,"Copie DF à: ",null,null,null,null,"- Organisme responsable\n- Forestier de triage"]
[]
[null,"- Bulletin de versement QR"]